bitfinex/quotes_SOLUSD_20241113
["timestamp","ask_amount","ask_price","bid_price","bid_amount"]
[1731490539984,22.63234682,205.98,205.9,27.48894682]
[1731490540813,27.48724682,205.98,205.9,27.48894682]
[1731490540990,27.48724682,205.98,205.9,22.63234682]
[1731490541309,22.63234682,205.96,205.88,351.63194682]
[1731490541611,22.63234682,205.96,205.83,0.1]
[1731490541612,22.63234682,205.92,205.85,22.63234682]
[1731490543213,22.63234682,205.88,205.81,22.63234682]
[1731490543920,22.63234682,205.88,205.81,27.49104682]
[1731490545603,22.63234682,205.92,205.83,22.63234682]
[1731490545808,27.48824682,205.94,205.85,22.63234682]
[1731490547318,14.85458557,206.02,205.96,0.1]
[1731490547544,19.417552,206.1,206.01,4.8541]
[1731490547711,19.417552,206.1,206.05,22.63234682]
[1731490547712,7.55677958,206.08,206.05,22.63234682]
[1731490548015,4.8521,206.1,206.05,22.63234682]
[1731490548623,0.12549,206.12,206.05,22.63234682]
[1731490548824,4.8515,206.12,206.05,22.63234682]
[1731490549132,0.12549,206.13,206.07,22.63234682]
[1731490549423,6.2288,206.19,206.11,22.63234682]
[1731490549719,27.48164682,206.22,206.13,22.63234682]
[1731490549897,4.8493,206.22,206.15,22.63234682]
[1731490551301,24.8493,206.22,206.15,22.63234682]
[1731490551714,22.63234682,206.18,206.11,22.63234682]
[1731490551915,24.8493,206.22,206.03,0.1]
[1731490551916,0.12549,206.12,206.03,22.63234682]
[1731490552115,22.63234682,206.11,206.03,22.63234682]
[1731490553003,4.97749,206.1,206.03,22.63234682]
[1731490553706,20.0,206.12,206.05,22.63234682]
[1731490553923,0.12549,206.11,206.05,22.63234682]
[1731490555124,22.63234682,206.15,206.07,22.63234682]
[1731490555308,20.0,206.14,206.07,22.63234682]
[1731490555503,4.8509,206.15,206.09,22.63234682]
[1731490555824,27.48324682,206.15,206.07,22.63234682]
[1731490556206,0.12549,206.14,206.07,22.63234682]
[1731490556924,4.97659,206.14,206.07,22.63234682]
[1731490557503,36.4688,206.22,206.09,22.63234682]
[1731490557504,4.8506,206.16,206.09,22.63234682]
[1731490558104,4.8502,206.18,206.11,22.63234682]
[1731490558620,22.63234682,206.13,206.08,312.0]
[1731490558926,4.8515,206.12,206.05,22.63234682]
[1731490560424,4.8515,206.12,206.05,27.48544682]
[1731490560723,4.8515,206.12,206.03,35.910984]
[1731490560724,0.12549,206.1,206.03,12.1341]
[1731490560910,0.12549,206.1,206.04,22.63234682]
[1731490562004,22.63234682,206.13,206.06,22.63234682]
[1731490562218,4.8503,206.17,206.11,22.63234682]
[1731490562422,22.63234682,206.2,206.11,22.63234682]
[1731490562622,4.85,206.19,206.11,22.63234682]
[1731490563021,4.85,206.19,206.13,22.63234682]
[1731490563227,0.12549,206.17,206.09,22.63234682]
[1731490563405,0.12549,206.13,206.07,22.63234682]
[1731490563925,22.63234682,206.16,206.09,22.63234682]
[1731490564129,4.8508,206.15,206.09,22.63234682]
[1731490564328,22.63234682,206.12,206.04,12.1335]
[1731490564514,22.63234682,206.06,205.99,12.1359]
[1731490564717,0.12549,206.05,205.97,4.8549]
[1731490564909,0.12549,206.05,205.96,22.63234682]
[1731490564910,22.63234682,206.02,205.94,34.77114682]
[1731490566108,27.48644682,206.02,205.94,39.62684682]
[1731490566528,27.48644682,206.02,205.94,22.63234682]
[1731490566734,27.48644682,206.02,205.94,27.48804682]
[1731490567130,22.63234682,206.0,205.92,39.62834682]
[1731490567817,0.12549,205.99,205.92,34.77234682]
[1731490568024,4.8548,205.98,205.92,22.63234682]
[1731490568335,4.8548,205.98,205.88,12.1429]
[1731490568336,22.63234682,205.96,205.88,39.63224682]
[1731490568517,0.12549,205.95,205.88,34.77524682]
[1731490568712,22.75783682,205.93,205.83,12.1454]
[1731490568916,22.63234682,205.91,205.84,22.63234682]
[1731490569115,22.75783682,205.87,205.79,22.63234682]
[1731490569332,22.63234682,205.88,205.8,22.63234682]
[1731490569636,22.63234682,205.88,205.78,12.1488]
[1731490569637,0.12549,205.87,205.81,22.63234682]
[1731490570076,27.61533682,205.87,205.81,22.63234682]
[1731490570337,4.98299,205.87,205.81,22.63234682]
[1731490570935,4.98299,205.87,205.79,22.63234682]
[1731490571130,0.12549,205.85,205.79,22.63234682]
[1731490571316,20.12549,205.85,205.77,22.63234682]
[1731490571818,0.12549,205.81,205.74,22.63234682]
[1731490572436,22.63234682,205.84,205.76,22.63234682]
[1731490572616,22.63234682,205.82,205.74,34.78354682]
[1731490572810,22.63234682,205.82,205.74,22.63234682]
[1731490572811,0.12549,205.81,205.74,22.63234682]
[1731490573009,22.63234682,205.8,205.72,22.63234682]
[1731490573219,0.12549,205.75,205.69,12.154]
[1731490573514,0.12549,205.75,205.62,0.5924824]
[1731490573515,22.63234682,205.74,205.66,22.63234682]
[1731490573724,0.12549,205.73,205.66,22.63234682]
[1731490573937,22.63234682,205.8,205.62,0.4924824]
[1731490573938,0.12549,205.69,205.62,0.4924824]
[1731490574142,0.12549,205.67,205.62,0.4924824]
[1731490574347,22.63234682,205.68,205.62,0.4924824]
[1731490574651,6.3768,205.73,205.62,0.4924824]
[1731490574652,0.12549,205.65,205.62,0.4924824]
[1731490574849,0.12549,205.65,205.4,19.546968]
[1731490574850,20.0,205.61,205.4,19.546968]
[1731490575150,0.12549,205.51,205.41,17.5314824]
[1731490575348,0.12549,205.51,205.44,36.89272597]
[1731490575935,0.12549,205.51,205.42,36.89272597]
[1731490576241,0.12549,205.43,205.41,0.4924824]
[1731490576445,37.01821597,205.42,205.41,0.4924824]
[1731490576823,36.89272597,205.42,205.41,0.4924824]
[1731490577029,36.89272597,205.44,205.41,0.4924824]
[1731490577239,56.89272597,205.42,205.41,0.4924824]
[1731490577574,57.01821597,205.42,205.41,0.4924824]
[1731490577852,36.89272597,205.44,205.41,0.4924824]
[1731490578051,37.01821597,205.42,205.41,0.4924824]
[1731490578252,61.88621597,205.42,205.41,0.4924824]
[1731490578550,4.868,205.42,205.41,0.4924824]
[1731490578759,20.0,205.43,205.41,0.4924824]
[1731490579242,0.12549,205.42,205.41,0.4924824]
[1731490579942,20.0,205.45,205.41,0.4924824]
[1731490579943,4.99309,205.44,205.41,0.4924824]
[1731490580145,0.12549,205.44,205.41,0.4924824]
[1731490580637,6.577,205.47,205.41,37.38520837]
[1731490580957,0.1,205.52,205.45,36.89272597]
[1731490580958,36.89272597,205.52,205.45,36.89272597]
[1731490581249,41.75792597,205.54,205.45,36.89272597]
[1731490582248,0.12549,205.53,205.45,36.89272597]
[1731490582434,4.8657,205.53,205.45,36.89272597]
[1731490582842,0.12549,205.52,205.45,36.89272597]
[1731490583330,37.01821597,205.52,205.43,36.89272597]
[1731490583931,56.89272597,205.54,205.45,36.89272597]
[1731490584144,0.12549,205.53,205.45,36.89272597]
[1731490584344,56.89272597,205.54,205.45,41.75992597]
[1731490584931,0.12549,205.53,205.45,41.75992597]
[1731490585145,0.12549,205.53,205.47,36.89272597]
[1731490585347,6.6102,205.55,205.5,36.89272597]
[1731490585549,16.216,205.63,205.45,17.0356]
[1731490585550,36.89272597,205.6,205.52,36.89272597]
[1731490585853,36.89272597,205.53,205.45,17.0356]
[1731490586032,36.89272597,205.53,205.46,36.89272597]
[1731490586352,0.12549,205.54,205.48,36.89272597]
[1731490586935,0.12549,205.56,205.48,36.89272597]
[1731490587335,0.12549,205.54,205.46,36.89272597]
[1731490589962,4.99089,205.54,205.46,36.89272597]
[1731490590757,4.99089,205.54,205.45,12.1684]
[1731490590967,0.12549,205.52,205.45,12.1684]
[1731490591541,0.12549,205.5,205.42,36.89272597]
[1731490591872,36.89272597,205.47,205.41,0.4924824]
[1731490592159,0.12549,205.46,205.41,0.4924824]
[1731490593345,48.37332597,205.49,205.41,37.38520837]
[1731490593540,0.12549,205.48,205.41,37.38520837]
[1731490594263,0.12549,205.46,205.41,0.4924824]
[1731490594962,36.89272597,205.5,205.41,49.55590837]
[1731490595356,0.12549,205.49,205.41,49.55590837]
[1731490595864,4.8654,205.53,205.41,49.55590837]
[1731490595865,0.12549,205.47,205.41,0.4924824]
[1731490596056,36.89272597,205.48,205.41,0.4924824]
[1731490596262,36.89272597,205.46,205.41,0.4924824]
[1731490596454,0.12549,205.45,205.41,0.4924824]
[1731490597745,36.89272597,205.48,205.41,37.38520837]
[1731490597946,4.8664,205.49,205.41,37.38520837]
[1731490598166,4.8664,205.49,205.41,42.25330837]
[1731490598373,19.69183186,205.55,205.41,42.25330837]
[1731490598374,12.39423186,205.55,205.48,36.89272597]
[1731490598571,0.12549,205.54,205.46,36.89272597]
[1731490598873,22.71096465,205.54,205.45,22.71096465]
[1731490599245,0.12549,205.53,205.45,22.71096465]
[1731490600104,4.8657,205.52,205.47,22.71096465]
[1731490600864,0.12549,205.51,205.48,36.89736187]
[1731490601874,4.99069,205.54,205.46,36.89736187]
[1731490602563,0.12549,205.49,205.42,49.06746187]
[1731490603465,36.89736187,205.52,205.42,49.06746187]
[1731490603670,0.12549,205.51,205.42,49.06746187]
[1731490604372,0.12549,205.45,205.41,0.4924824]
[1731490605144,0.12549,205.47,205.41,0.4924824]
[1731490605571,0.12549,205.45,205.41,0.4924824]
[1731490606571,4.8668,205.48,205.42,36.89736187]
[1731490606950,0.12549,205.47,205.42,36.89736187]
[1731490607652,4.8671,205.47,205.42,36.89736187]
[1731490608449,4.99189,205.49,205.42,36.89736187]
[1731490612665,0.12549,205.47,205.41,0.4924824]
[1731490613054,0.12549,205.45,205.41,0.4924824]
[1731490613959,0.12549,205.47,205.41,0.4924824]
[1731490614466,17.0324,205.49,205.45,36.89736187]
[1731490614650,4.8664,205.49,205.47,36.89736187]
[1731490614852,0.1,205.47,205.41,0.4924824]
[1731490615093,0.12549,205.42,205.41,0.4924824]
[1731490615779,36.89736187,205.44,205.41,0.4924824]
[1731490616271,0.12549,205.43,205.41,0.4924824]
[1731490616674,4.868,205.42,205.41,0.4924824]
[1731490617055,36.89736187,205.53,205.41,0.4924824]
[1731490617266,12.1635,205.54,205.47,36.89736187]
[1731490617467,0.12549,205.51,205.47,36.89736187]
[1731490617673,0.12549,205.51,205.45,36.89736187]
[1731490618058,0.12549,205.51,205.41,312.4924824]
[1731490618059,0.12549,205.46,205.41,0.4924824]
[1731490618262,0.12549,205.44,205.41,0.4924824]
[1731490618852,4.8678,205.43,205.41,0.4924824]
[1731490619489,0.12549,205.42,205.41,0.4924824]
[1731490620862,22.86521557,205.42,205.41,0.4924824]
[1731490621056,46.64209957,205.42,205.41,8.24e-05]
[1731490622171,66.64209957,205.42,205.41,8.24e-05]
[1731490622565,0.12549,205.36,205.29,22.73972557]
[1731490622758,22.73972557,205.35,205.27,22.73972557]
[1731490622967,0.12549,205.34,205.27,22.73972557]
[1731490623173,0.12549,205.34,205.29,22.73972557]
[1731490623478,0.12549,205.32,205.24,22.73972557]
[1731490623678,0.12549,205.3,205.24,22.73972557]
[1731490623978,0.12549,205.3,205.2,0.4924824]
[1731490623979,0.12549,205.3,205.22,22.73972557]
[1731490624876,4.8711,205.29,205.24,22.73972557]
[1731490625175,4.8704,205.32,205.26,22.73972557]
[1731490625769,0.12549,205.31,205.26,22.73972557]
[1731490626156,4.99589,205.32,205.26,22.73972557]
[1731490626961,4.99589,205.32,205.29,22.73972557]
[1731490626962,4.8704,205.32,205.29,22.73972557]
[1731490627158,16.1542,205.37,205.3,22.73972557]
[1731490627367,4.8694,205.36,205.34,22.73972557]
[1731490627560,4.8694,205.36,205.32,22.73972557]
[1731490627764,6.4218,205.39,205.32,22.73972557]
[1731490627974,29.6136278,205.43,205.23,0.1]
[1731490627975,51.51572557,205.43,205.36,22.73972557]
[1731490628290,4.868,205.42,205.36,22.73972557]
[1731490628471,0.12549,205.41,205.34,22.73972557]
[1731490628786,0.12549,205.39,205.28,4.8713]
[1731490628980,0.12549,205.39,205.32,22.73972557]
[1731490629282,27.60772557,205.42,205.34,22.73972557]
[1731490629469,4.868,205.42,205.34,22.73972557]
[1731490629658,0.12549,205.41,205.34,22.73972557]
[1731490630485,4.8685,205.4,205.34,22.73972557]
[1731490630667,4.8678,205.44,205.38,22.73972557]
[1731490631884,4.8672,205.46,205.4,22.73972557]
[1731490632391,4.8672,205.46,205.33,6.4646]
[1731490632392,0.12549,205.45,205.38,22.73972557]
[1731490632887,4.8666,205.48,205.42,22.73972557]
[1731490633064,0.12549,205.47,205.42,22.73972557]
[1731490633264,25.669191,205.54,205.46,22.73972557]
[1731490633469,4.8658,205.52,205.49,22.73972557]
[1731490633761,4.8654,205.54,205.51,22.73972557]
[1731490633965,0.12549,205.53,205.51,22.73972557]
[1731490634190,0.12549,205.53,205.49,22.73972557]
[1731490634483,4.8645,205.57,205.49,22.73972557]
[1731490635573,0.12549,205.56,205.51,22.73972557]
[1731490635788,4.8645,205.57,205.51,22.73972557]
[1731490635961,11.0658,205.59,205.53,22.73972557]
[1731490636288,4.8642,205.59,205.53,22.73972557]
[1731490636585,4.8635,205.61,205.53,22.73972557]
[1731490637088,4.8635,205.61,205.55,22.73972557]
[1731490637276,4.8621,205.67,205.59,22.73972557]
[1731490637477,4.8621,205.67,205.53,17.0289]
[1731490637478,4.8621,205.67,205.61,22.73972557]
[1731490638061,22.73972557,205.62,205.53,22.73972557]
[1731490638371,0.12549,205.59,205.53,22.73972557]
[1731490638574,4.98969,205.59,205.53,22.73972557]
[1731490639085,4.98969,205.59,205.48,17.0327]
[1731490639384,4.98969,205.59,205.51,22.73972557]
[1731490639589,4.98969,205.59,205.49,22.73972557]
[1731490639769,0.12549,205.57,205.49,22.73972557]
[1731490640365,0.12549,205.55,205.47,22.73972557]
[1731490640584,0.12549,205.51,205.41,6.137]
[1731490640783,0.12549,205.51,205.42,22.73972557]
[1731490641011,0.12549,205.51,205.38,12.1723]
[1731490641012,0.12549,205.48,205.38,324.1723]
[1731490641167,0.12549,205.48,205.4,22.73972557]
[1731490642790,4.8668,205.47,205.39,36.92430157]
[1731490644273,41.91699157,205.46,205.37,36.92430157]
[1731490644574,36.92430157,205.42,205.33,49.09940157]
[1731490645191,17.035,205.46,205.31,6.4953]
[1731490645192,0.12549,205.39,205.31,36.92430157]
[1731490646071,0.12549,205.39,205.26,36.92430157]
[1731490646072,0.12549,205.35,205.26,36.92430157]
[1731490646271,41.79420157,205.34,205.26,36.92430157]
[1731490646472,4.8699,205.34,205.26,36.92430157]
[1731490646696,4.8699,205.34,205.28,36.92430157]
[1731490646877,4.8699,205.34,205.25,4.872]
[1731490647071,4.8699,205.34,205.28,36.92430157]
[1731490648987,20.0,205.39,205.32,36.92430157]
[1731490649195,0.12549,205.38,205.32,36.92430157]
[1731490649879,37.04979157,205.38,205.3,36.92430157]
[1731490650279,0.12549,205.36,205.3,36.92430157]
[1731490652196,20.0,205.39,205.32,36.92430157]
[1731490652376,36.92430157,205.45,205.38,36.92430157]
[1731490652573,4.8673,205.45,205.38,36.92430157]
[1731490653097,41.79160157,205.45,205.38,36.92430157]
[1731490653678,4.8673,205.45,205.38,36.92430157]
[1731490653878,0.12549,205.44,205.38,36.92430157]
[1731490654304,43.22680157,205.47,205.4,36.92430157]
[1731490654596,0.12549,205.44,205.34,17.0443]
[1731490654784,0.12549,205.44,205.39,36.92430157]
[1731490655099,4.8674,205.45,205.39,36.92430157]
[1731490660409,20.12549,205.48,205.39,36.92430157]
[1731490660814,20.12549,205.48,205.41,36.92430157]
[1731490661407,0.12549,205.46,205.41,36.92430157]
[1731490662509,0.12549,205.47,205.41,36.92430157]
[1731490662700,4.99229,205.47,205.41,36.92430157]
[1731490663889,41.79080157,205.49,205.41,36.92430157]
[1731490664217,4.8665,205.49,205.45,36.92430157]
[1731490664516,4.8665,205.49,205.4,36.92430157]
[1731490664517,6.5732,205.51,205.47,36.92430157]
[1731490664721,11.4392,205.51,205.47,36.92430157]
[1731490665007,11.4392,205.51,205.46,22.7074416]
[1731490666305,4.8656,205.53,205.48,22.7074416]
[1731490666508,4.8651,205.55,205.5,22.7074416]
[1731490667507,6.4917,205.61,205.54,22.7074416]
[1731490667812,4.8632,205.63,205.58,22.7074416]
[1731490668389,4.98809,205.65,205.6,22.7074416]
[1731490668590,4.98809,205.65,205.58,22.7074416]
[1731490669210,24.8626,205.65,205.58,22.7074416]
[1731490670408,4.8626,205.65,205.6,22.7074416]
[1731490670711,4.8626,205.65,205.62,22.7074416]
[1731490670895,36.7971,205.71,205.64,22.7074416]
[1731490671090,41.6584,205.71,205.64,22.7074416]
[1731490671291,26.2705,205.71,205.66,22.7074416]
[1731490671510,6.3467,205.71,205.66,22.7074416]
[1731490671813,4.8608,205.73,205.68,22.7074416]
[1731490672395,4.8603,205.75,205.68,22.7074416]
[1731490672594,0.12549,205.74,205.68,22.7074416]
[1731490673097,4.8603,205.75,205.68,22.7074416]
[1731490673505,21.5669,205.76,205.72,22.7074416]
[1731490673711,26.4269,205.76,205.7,22.7074416]
[1731490673894,0.12549,205.75,205.7,22.7074416]
[1731490674094,6.1191,205.76,205.7,22.7074416]
[1731490674513,22.7074416,205.78,205.7,22.7074416]
[1731490674709,0.12549,205.77,205.7,22.7074416]
[1731490675501,4.98549,205.77,205.7,22.7074416]
[1731490676307,20.12549,205.73,205.59,0.1]
[1731490676495,20.12549,205.73,205.65,22.7074416]
[1731490676694,0.12549,205.73,205.65,22.7074416]
[1731490677019,22.7074416,205.76,205.67,22.7074416]
[1731490677195,22.7074416,205.76,205.69,22.7074416]
[1731490677395,4.8602,205.75,205.69,22.7074416]
[1731490677613,0.12549,205.76,205.69,22.7074416]
[1731490679796,4.98519,205.77,205.69,22.7074416]
[1731490680411,0.12549,205.75,205.67,22.7074416]
[1731490680596,22.7074416,205.74,205.67,22.7074416]
[1731490680793,0.12549,205.75,205.67,22.7074416]
[1731490681021,20.12549,205.75,205.67,22.7074416]
[1731490681215,0.12549,205.73,205.65,22.7074416]
[1731490681421,22.7074416,205.74,205.65,22.7074416]
[1731490681422,0.12549,205.71,205.65,22.7074416]
[1731490681599,0.12549,205.69,205.61,22.7074416]
[1731490681795,20.0,205.72,205.65,22.7074416]
[1731490682010,16.4854,205.74,205.65,22.7074416]
[1731490682216,16.4854,205.74,205.67,22.7074416]
[1731490682522,20.0,205.76,205.69,22.7074416]
[1731490682705,20.7455,205.79,205.71,22.7074416]
[1731490682706,43.4529416,205.79,205.71,22.7074416]
[1731490683112,0.12549,205.78,205.71,22.7074416]
[1731490683712,43.4529416,205.79,205.71,22.7074416]
[1731490683917,0.12549,205.78,205.71,22.7074416]
[1731490684426,20.12549,205.78,205.69,22.7074416]
[1731490684812,20.12549,205.78,205.67,4.862]
[1731490684813,4.8588,205.82,205.75,22.7074416]
[1731490685519,4.8588,205.82,205.77,22.7074416]
[1731490685828,44.7168416,205.86,205.77,22.7074416]
[1731490686002,0.12549,205.84,205.77,22.7074416]
[1731490686209,22.7074416,205.84,205.75,22.7074416]
[1731490686406,4.8579,205.85,205.77,22.7074416]
[1731490687213,0.12549,205.84,205.77,22.7074416]
[1731490687513,22.7074416,205.84,205.75,22.7074416]
[1731490687716,0.12549,205.81,205.7,316.8613]
[1731490687921,0.12549,205.81,205.75,22.7074416]
[1731490688119,4.98439,205.81,205.75,22.7074416]
[1731490688321,4.858,205.85,205.79,22.7074416]
[1731490688625,24.858,205.85,205.77,22.7074416]
[1731490688826,22.7074416,205.84,205.75,22.7074416]
[1731490689014,20.12549,205.83,205.75,22.7074416]
[1731490689326,42.8329316,205.83,205.75,22.7074416]
[1731490690027,4.8586,205.82,205.75,22.7074416]
[1731490690405,22.0094,205.86,205.79,22.7074416]
[1731490690625,19.431572,205.9,205.81,22.7074416]
[1731490690825,0.12549,205.88,205.79,22.7074416]
[1731490691011,22.7074416,205.89,205.81,22.7074416]
[1731490691625,20.12549,205.88,205.81,22.7074416]
[1731490692130,0.12549,205.86,205.79,22.7074416]
[1731490692304,20.12549,205.86,205.77,22.7074416]
[1731490692503,20.12549,205.86,205.7,22.9074416]
[1731490692504,20.12549,205.84,205.75,22.7074416]
[1731490693130,20.12549,205.84,205.77,22.7074416]
[1731490693323,20.12549,205.84,205.75,22.7074416]
[1731490693915,20.12549,205.82,205.73,22.7074416]
[1731490694109,0.12549,205.8,205.73,22.7074416]
[1731490694337,20.12549,205.76,205.69,22.7074416]
[1731490695331,22.733,205.8,205.74,22.7074416]
[1731490695713,6.1377,205.8,205.74,22.7074416]
[1731490696028,4.8583,205.83,205.76,22.7074416]
[1731490696420,4.8583,205.83,205.78,22.7074416]
[1731490696625,22.7074416,205.82,205.74,22.7074416]
[1731490696820,0.12549,205.76,205.68,22.7074416]
[1731490697020,22.7074416,205.75,205.68,22.7074416]
[1731490697716,22.7074416,205.75,205.66,22.7074416]
[1731490697919,22.7074416,205.75,205.68,22.7074416]
[1731490698113,4.8605,205.74,205.68,22.7074416]
[1731490698316,20.0,205.78,205.72,22.7074416]
[1731490699216,4.8592,205.8,205.72,27.5683416]
[1731490699426,4.8592,205.8,205.74,22.7074416]
[1731490699622,4.8592,205.8,205.76,22.7074416]
[1731490699826,4.8592,205.8,205.74,22.7074416]
[1731490700137,4.8588,205.82,205.76,22.7074416]
[1731490700311,4.8588,205.82,205.78,22.7074416]
[1731490700511,4.8588,205.82,205.72,17.0133]
[1731490700512,4.8588,205.82,205.76,22.7074416]
[1731490701524,22.7074416,205.83,205.74,22.7074416]
[1731490701836,6.6243,205.85,205.78,22.7074416]
[1731490702039,4.8578,205.86,205.8,22.7074416]
[1731490702425,4.8578,205.86,205.78,22.7074416]
[1731490702717,22.7074416,205.85,205.76,22.7074416]
[1731490702919,0.12549,205.84,205.76,22.7074416]
[1731490703228,22.7074416,205.81,205.74,22.7074416]
[1731490703442,22.7074416,205.81,205.72,22.7074416]
[1731490703612,22.8329316,205.79,205.7,22.7074416]
[1731490703816,29.0790416,205.79,205.7,22.7074416]
[1731490704030,6.3716,205.79,205.72,22.7074416]
[1731490704339,29.0790416,205.79,205.7,22.7074416]
[1731490705019,24.98499,205.78,205.7,22.7074416]
[1731490705541,22.7074416,205.77,205.68,39.7237416]
[1731490706316,22.7074416,205.75,205.68,22.7074416]
[1731490707319,0.12549,205.74,205.66,22.7074416]
[1731490707646,20.12549,205.72,205.64,22.7074416]
[1731490707818,22.7074416,205.71,205.62,22.7074416]
[1731490708133,20.12549,205.7,205.62,22.7074416]
[1731490708436,4.8616,205.69,205.64,22.7074416]
[1731490709521,4.98669,205.71,205.64,22.7074416]
[1731490710436,22.8329316,205.69,205.57,4.8643]
[1731490710741,22.7074416,205.67,205.59,22.7074416]
[1731490711442,22.7074416,205.63,205.49,0.2]
[1731490711742,22.7074416,205.61,205.53,34.8710416]
[1731490712815,27.5705416,205.63,205.55,22.7074416]
[1731490713443,4.8627,205.65,205.58,22.7074416]
[1731490713735,10.9445,205.67,205.6,22.7074416]
[1731490713938,6.0822,205.67,205.6,22.7074416]
[1731490714329,10.9444,205.67,205.6,22.7074416]
[1731490715438,10.9444,205.67,205.59,4.8639]
[1731490715643,10.9444,205.67,205.62,22.7074416]
[1731490716223,12.99076417,205.72,205.62,22.7074416]
[1731490716224,0.83786417,205.72,205.62,39.7288416]
[1731490716430,4.8604,205.75,205.7,22.7074416]
[1731490717722,0.12549,205.74,205.68,22.7074416]
[1731490717929,0.12549,205.7,205.62,22.7074416]
[1731490719241,4.8616,205.69,205.62,22.7074416]
[1731490719639,0.12549,205.66,205.58,27.5714416]
[1731490720025,0.12549,205.66,205.58,22.7074416]
[1731490720226,22.7074416,205.67,205.58,22.7074416]
[1731490720431,0.12549,205.66,205.58,27.5716416]
[1731490721351,4.8626,205.65,205.58,27.5716416]
[1731490721531,4.8626,205.65,205.58,22.7074416]
[1731490722337,0.12549,205.64,205.57,12.1607]
[1731490722535,22.7074416,205.63,205.56,22.7074416]
[1731490722748,0.12549,205.62,205.54,22.7074416]
[1731490723346,4.8635,205.61,205.54,27.5725416]
[1731490723544,27.5706416,205.63,205.54,27.5725416]
[1731490723923,4.8632,205.63,205.56,22.7074416]
[1731490724744,27.5706416,205.63,205.56,22.7074416]
[1731490725137,22.7074416,205.61,205.52,27.5730416]
[1731490725742,0.12549,205.6,205.52,339.5730416]
[1731490725936,0.12549,205.6,205.48,22.7074416]
[1731490725937,22.7074416,205.57,205.48,22.7074416]
[1731490726140,22.7074416,205.57,205.48,27.5740416]
[1731490726326,22.7074416,205.57,205.48,39.7406416]
[1731490727231,4.8647,205.56,205.48,39.7406416]
[1731490727435,22.7074416,205.59,205.52,22.7074416]
[1731490727628,20.0,205.6,205.52,22.7074416]
[1731490727847,22.7074416,205.57,205.48,39.7406416]
[1731490728634,0.12549,205.56,205.48,34.8740416]
[1731490729240,4.8649,205.55,205.48,34.8740416]
[1731490729448,27.5723416,205.55,205.48,22.7074416]
[1731490729959,27.5723416,205.55,205.46,22.7074416]
[1731490730256,22.7074416,205.53,205.44,22.7074416]
[1731490730457,0.12549,205.5,205.44,22.7074416]
[1731490730649,22.7074416,205.53,205.44,22.7074416]
[1731490731354,0.12549,205.52,205.44,22.7074416]
[1731490731559,4.99119,205.52,205.44,27.5748416]
[1731490732331,4.99119,205.52,205.44,22.7074416]
[1731490732539,22.7074416,205.51,205.42,22.7074416]
[1731490733552,4.8661,205.5,205.42,27.5754416]
[1731490734572,4.8661,205.5,205.44,22.7074416]
[1731490735539,24.99119,205.52,205.44,22.7074416]
[1731490737259,22.0393,205.55,205.48,22.7074416]
[1731490737456,4.8654,205.54,205.48,22.7074416]
[1731490737763,22.7074416,205.53,205.45,22.7074416]
[1731490737949,0.12549,205.53,205.45,22.7074416]
[1731490739062,4.8657,205.52,205.46,22.7074416]
[1731490739743,44.7467416,205.55,205.46,22.7074416]
[1731490739946,44.7467416,205.55,205.5,22.7074416]
[1731490739947,22.0393,205.55,205.5,22.7074416]
[1731490740153,27.2886,205.6,205.54,22.7074416]
[1731490740466,27.2886,205.6,205.52,22.7074416]
[1731490740878,27.2886,205.6,205.58,22.7074416]
[1731490740879,6.1753,205.6,205.58,22.7074416]
[1731490741044,22.4246,205.66,205.58,39.7323416]
[1731490741237,22.4246,205.66,205.61,22.7074416]
[1731490741859,0.12549,205.65,205.59,22.7074416]
[1731490742066,0.12549,205.61,205.53,22.7074416]
[1731490742846,0.12549,205.61,205.48,0.1]
[1731490742847,20.0,205.63,205.57,22.7074416]
[1731490743164,0.12549,205.64,205.59,22.7074416]
[1731490743346,4.8626,205.65,205.59,22.7074416]
[1731490743665,0.12549,205.64,205.57,22.7074416]
[1731490744269,0.12549,205.61,205.53,22.7074416]
[1731490745469,20.12549,205.59,205.51,22.7074416]
[1731490746371,0.12549,205.55,205.49,22.7074416]
[1731490746552,4.8652,205.54,205.49,22.7074416]
[1731490749261,22.7074416,205.6,205.53,22.7074416]
[1731490749467,4.8644,205.58,205.53,22.7074416]
[1731490749773,4.8644,205.58,205.45,0.1]
[1731490749774,4.8626,205.65,205.55,22.7074416]
[1731490749979,22.7074416,205.64,205.55,22.7074416]
[1731490750150,22.7074416,205.64,205.5,22.7074416]